[Event "Betsys MČR v online bleskovém šachu 2021"]
[Site "Chess.com"]
[Date "2021.04.17"]
[Round "13"]
[White "adiklan"]
[Black "5265"]
[Result "1-0"]
[WhiteElo "1897"]
[BlackElo "1659"]
[TimeControl "180+1"]
[EndTime "11:10:23 PDT"]
[Termination "Uživatel adiklan zvítězil matem"]

1. e4 {[%clk 0:03:00.9]} 1... e5 {[%clk 0:02:57]} 2. Bc4 {[%clk 0:03:00.8]} 2...
Nc6 {[%clk 0:02:53.3]} 3. Nf3 {[%clk 0:03:01.2]} 3... Nf6 {[%clk 0:02:53.1]} 4.
d4 {[%clk 0:03:00.7]} 4... exd4 {[%clk 0:02:50.3]} 5. O-O {[%clk 0:03:00.6]}
5... d6 {[%clk 0:02:49.7]} 6. Nxd4 {[%clk 0:02:58]} 6... Be7 {[%clk 0:02:47]} 7.
Nxc6 {[%clk 0:02:57.8]} 7... bxc6 {[%clk 0:02:47]} 8. Nc3 {[%clk 0:02:57.8]}
8... O-O {[%clk 0:02:46.8]} 9. h3 {[%clk 0:02:52.7]} 9... Bb7 {[%clk 0:02:42.3]}
10. f4 {[%clk 0:02:42.3]} 10... d5 {[%clk 0:02:41.8]} 11. Bd3 {[%clk 0:02:38.4]}
11... dxe4 {[%clk 0:02:41.5]} 12. Bxe4 {[%clk 0:02:39.3]} 12... Nxe4 {[%clk
0:02:40.7]} 13. Nxe4 {[%clk 0:02:40.2]} 13... Qxd1 {[%clk 0:02:37]} 14. Rxd1
{[%clk 0:02:40]} 14... Rad8 {[%clk 0:02:37.1]} 15. Be3 {[%clk 0:02:39.5]} 15...
Rd5 {[%clk 0:02:33.5]} 16. c4 {[%clk 0:02:36.2]} 16... Rdd8 {[%clk 0:02:30]} 17.
Nc5 {[%clk 0:02:29.2]} 17... Bc8 {[%clk 0:02:26.7]} 18. g4 {[%clk 0:02:23.1]}
18... Rfe8 {[%clk 0:02:26.4]} 19. Kf2 {[%clk 0:02:19.5]} 19... Bh4+ {[%clk
0:02:24]} 20. Kf3 {[%clk 0:02:15.8]} 20... Rd6 {[%clk 0:02:12.5]} 21. Rd4 {[%clk
0:01:59.2]} 21... Rde6 {[%clk 0:02:11.9]} 22. Nxe6 {[%clk 0:01:51.1]} 22... Bxe6
{[%clk 0:02:08.8]} 23. Re4 {[%clk 0:01:47.2]} 23... g6 {[%clk 0:02:01.7]} 24. b3
{[%clk 0:01:27.1]} 24... h5 {[%clk 0:02:01.4]} 25. g5 {[%clk 0:01:17.3]} 25...
Bg4+ {[%clk 0:01:58.7]} 26. hxg4 {[%clk 0:01:16.5]} 26... hxg4+ {[%clk 0:01:59]}
27. Kxg4 {[%clk 0:01:13.2]} 27... Rxe4 {[%clk 0:01:59]} 28. Bxa7 {[%clk
0:01:12.2]} 28... Bf2 {[%clk 0:01:54.1]} 29. Bxf2 {[%clk 0:01:11.2]} 29... Re2
{[%clk 0:01:53.2]} 30. Bd4 {[%clk 0:01:07.5]} 30... Rg2+ {[%clk 0:01:49.9]} 31.
Kf3 {[%clk 0:01:07.1]} 31... Rh2 {[%clk 0:01:49.9]} 32. Re1 {[%clk 0:01:06.6]}
32... Rh3+ {[%clk 0:01:49.7]} 33. Kg4 {[%clk 0:01:07.1]} 33... f5+ {[%clk
0:01:27.9]} 34. Kxh3 {[%clk 0:01:04.7]} 34... Kf7 {[%clk 0:01:27.9]} 35. Bf6
{[%clk 0:01:04.5]} 35... c5 {[%clk 0:01:27.5]} 36. Re7+ {[%clk 0:01:04.3]} 36...
Kf8 {[%clk 0:01:27.9]} 37. Rf7+ {[%clk 0:01:01]} 37... Kxf7 {[%clk 0:01:27.4]}
38. Kg3 {[%clk 0:01:01.6]} 38... Ke6 {[%clk 0:01:27.5]} 39. Kf3 {[%clk
0:01:02.5]} 39... Kd6 {[%clk 0:01:27.6]} 40. Ke3 {[%clk 0:01:03.4]} 40... Kc6
{[%clk 0:01:27.9]} 41. Kd3 {[%clk 0:01:04.3]} 41... Kd6 {[%clk 0:01:28.2]} 42.
Kc3 {[%clk 0:01:05.2]} 42... Kc6 {[%clk 0:01:28.6]} 43. a4 {[%clk 0:01:06.1]}
43... Kb6 {[%clk 0:01:28.9]} 44. b4 {[%clk 0:01:07]} 44... cxb4+ {[%clk
0:01:29]} 45. Kxb4 {[%clk 0:01:07.7]} 45... c5+ {[%clk 0:01:29.6]} 46. Ka3
{[%clk 0:01:07.6]} 46... Ka5 {[%clk 0:01:29.8]} 47. Bd8+ {[%clk 0:01:08.2]}
47... Ka6 {[%clk 0:01:29.9]} 48. Be7 {[%clk 0:01:07.8]} 48... Kb6 {[%clk
0:01:30]} 49. a5+ {[%clk 0:01:08.3]} 49... Kxa5 {[%clk 0:01:28.6]} 50. Bxc5
{[%clk 0:01:08.9]} 50... Ka6 {[%clk 0:01:29.2]} 51. Kb4 {[%clk 0:01:08.8]} 51...
Kb7 {[%clk 0:01:29.5]} 52. Kb5 {[%clk 0:01:08.5]} 52... Kc7 {[%clk 0:01:29.9]}
53. Bd4 {[%clk 0:01:08.6]} 53... Kd6 {[%clk 0:01:28.2]} 54. Be5+ {[%clk
0:01:07.7]} 54... Kd7 {[%clk 0:01:27.9]} 55. Kb6 {[%clk 0:01:08]} 55... Kc8
{[%clk 0:01:28.2]} 56. Kc6 {[%clk 0:01:08.6]} 56... Kd8 {[%clk 0:01:24.8]} 57.
Kb7 {[%clk 0:01:09.5]} 57... Kd7 {[%clk 0:01:25.3]} 58. c5 {[%clk 0:01:10.4]}
58... Ke6 {[%clk 0:01:13.7]} 59. c6 {[%clk 0:01:10.7]} 59... Kd5 {[%clk
0:01:14]} 60. c7 {[%clk 0:01:11.1]} 60... Ke6 {[%clk 0:01:14.5]} 61. c8=Q+
{[%clk 0:01:11.1]} 61... Ke7 {[%clk 0:01:14.6]} 62. Qc7+ {[%clk 0:01:09.2]}
62... Ke6 {[%clk 0:01:14.5]} 63. Qd6+ {[%clk 0:01:09.6]} 63... Kf7 {[%clk
0:01:14.5]} 64. Qd7+ {[%clk 0:01:03.7]} 64... Kf8 {[%clk 0:01:12.8]} 65. Kc6
{[%clk 0:01:04.1]} 65... Kg8 {[%clk 0:01:11.5]} 66. Qg7# {[%clk 0:01:05]} 1-0

[Event "Betsys MČR v online bleskovém šachu 2021"]
[Site "Chess.com"]
[Date "2021.04.17"]
[Round "13"]
[White "Klokan64"]
[Black "jonasstach"]
[Result "0-1"]
[WhiteElo "1442"]
[BlackElo "1980"]
[TimeControl "180+1"]
[EndTime "11:10:23 PDT"]
[Termination "Uživatel jonasstach zvítězil na čas"]

1. d4 {[%clk 0:03:00.9]} 1... d5 {[%clk 0:02:59.7]} 2. Nf3 {[%clk 0:02:59.6]}
2... Nf6 {[%clk 0:02:58.3]} 3. Bg5 {[%clk 0:02:58.9]} 3... c6 {[%clk 0:02:57.9]}
4. e3 {[%clk 0:02:56.5]} 4... Bg4 {[%clk 0:02:57.4]} 5. Bd3 {[%clk 0:02:54.8]}
5... e6 {[%clk 0:02:56.7]} 6. Nbd2 {[%clk 0:02:52]} 6... Bd6 {[%clk 0:02:51.9]}
7. c3 {[%clk 0:02:51.3]} 7... Nbd7 {[%clk 0:02:51.2]} 8. Qc2 {[%clk 0:02:50.8]}
8... h6 {[%clk 0:02:48.7]} 9. Bh4 {[%clk 0:02:49.6]} 9... c5 {[%clk 0:02:42.8]}
10. b3 {[%clk 0:02:45.8]} 10... Bxf3 {[%clk 0:02:41.7]} 11. Nxf3 {[%clk
0:02:43.7]} 11... Rc8 {[%clk 0:02:40.9]} 12. O-O {[%clk 0:02:29.1]} 12... a6
{[%clk 0:02:28.5]} 13. a4 {[%clk 0:02:26.3]} 13... Qb6 {[%clk 0:02:23.9]} 14.
Rac1 {[%clk 0:02:06.9]} 14... O-O {[%clk 0:02:16.9]} 15. Qb1 {[%clk 0:02:00.5]}
15... cxd4 {[%clk 0:02:11]} 16. cxd4 {[%clk 0:01:47.4]} 16... Ba3 {[%clk
0:02:04.8]} 17. Rxc8 {[%clk 0:01:42.8]} 17... Rxc8 {[%clk 0:02:05.7]} 18. Ne5
{[%clk 0:01:18.1]} 18... Rc3 {[%clk 0:01:49.7]} 19. Bc2 {[%clk 0:01:05.6]} 19...
Nxe5 {[%clk 0:01:44.7]} 20. dxe5 {[%clk 0:01:01.1]} 20... Nd7 {[%clk 0:01:44.5]}
21. Bg3 {[%clk 0:00:56.6]} 21... Nc5 {[%clk 0:01:26.4]} 22. Qa2 {[%clk
0:00:41.9]} 22... Bb4 {[%clk 0:01:07.3]} 23. Rd1 {[%clk 0:00:33.2]} 23... a5
{[%clk 0:01:05.4]} 24. Bh4 {[%clk 0:00:22.8]} 24... Qc7 {[%clk 0:00:56.6]} 25.
Bg3 {[%clk 0:00:18.1]} 25... g5 {[%clk 0:00:55.1]} 26. Rd4 {[%clk 0:00:16.7]}
26... Nd7 {[%clk 0:00:50.6]} 27. Bd1 {[%clk 0:00:05]} 27... Nxe5 {[%clk
0:00:48.3]} 28. Bxe5 {[%clk 0:00:04]} 28... Qxe5 {[%clk 0:00:47.1]} 0-1

[Event "Betsys MČR v online bleskovém šachu 2021"]
[Site "Chess.com"]
[Date "2021.04.17"]
[Round "13"]
[White "Honza_13"]
[Black "Hroch-hroch"]
[Result "0-1"]
[WhiteElo "1977"]
[BlackElo "2239"]
[TimeControl "180+1"]
[EndTime "11:10:24 PDT"]
[Termination "Uživatel Hroch-hroch zvítězil po vzdání soupeře"]

1. Nf3 {[%clk 0:03:00.9]} 1... d5 {[%clk 0:02:58.3]} 2. g3 {[%clk 0:02:59.9]}
2... Nc6 {[%clk 0:02:57.1]} 3. d4 {[%clk 0:02:59.3]} 3... Bg4 {[%clk 0:02:56.1]}
4. Bg2 {[%clk 0:02:58.8]} 4... Nf6 {[%clk 0:02:55]} 5. O-O {[%clk 0:02:58.1]}
5... Bxf3 {[%clk 0:02:54.1]} 6. exf3 {[%clk 0:02:57.8]} 6... e6 {[%clk
0:02:51.4]} 7. Bf4 {[%clk 0:02:52.7]} 7... Bd6 {[%clk 0:02:50]} 8. Bxd6 {[%clk
0:02:49.2]} 8... Qxd6 {[%clk 0:02:49]} 9. Nc3 {[%clk 0:02:34.9]} 9... O-O {[%clk
0:02:35.1]} 10. Re1 {[%clk 0:02:22.2]} 10... Qb4 {[%clk 0:02:20.3]} 11. Ne2
{[%clk 0:02:17.6]} 11... b6 {[%clk 0:02:05.4]} 12. b3 {[%clk 0:02:09.5]} 12...
a5 {[%clk 0:02:03.6]} 13. c3 {[%clk 0:02:06.5]} 13... Qd6 {[%clk 0:02:02.7]} 14.
c4 {[%clk 0:02:05.3]} 14... dxc4 {[%clk 0:01:57.3]} 15. bxc4 {[%clk 0:02:02.3]}
15... Rad8 {[%clk 0:01:56.8]} 16. d5 {[%clk 0:01:25.1]} 16... exd5 {[%clk
0:01:54.3]} 17. Qa4 {[%clk 0:01:09.5]} 17... Nb4 {[%clk 0:01:43.2]} 18. a3
{[%clk 0:00:59.5]} 18... Nd3 {[%clk 0:01:38.9]} 19. Red1 {[%clk 0:00:59.1]}
19... Nb2 {[%clk 0:01:37.8]} 20. Qc2 {[%clk 0:00:53]} 20... Nxd1 {[%clk
0:01:36.1]} 21. Rxd1 {[%clk 0:00:53.2]} 21... Qxa3 {[%clk 0:01:34.7]} 22. cxd5
{[%clk 0:00:23.6]} 22... Rxd5 {[%clk 0:01:33.2]} 23. Rxd5 {[%clk 0:00:21.6]}
23... Nxd5 {[%clk 0:01:32.9]} 24. f4 {[%clk 0:00:21.5]} 24... Qa1+ {[%clk
0:01:17.6]} 25. Bf1 {[%clk 0:00:20.5]} 25... c5 {[%clk 0:01:04.9]} 26. Qf5
{[%clk 0:00:15.2]} 26... Nf6 {[%clk 0:00:56.7]} 27. g4 {[%clk 0:00:14.4]} 27...
g6 {[%clk 0:00:46.5]} 28. Qg5 {[%clk 0:00:11.2]} 28... Ne4 {[%clk 0:00:42.9]}
29. Qh4 {[%clk 0:00:10.6]} 29... Nd2 {[%clk 0:00:41.5]} 0-1

[Event "Betsys MČR v online bleskovém šachu 2021"]
[Site "Chess.com"]
[Date "2021.04.17"]
[Round "13"]
[White "Jaja15F"]
[Black "dino5517"]
[Result "0-1"]
[WhiteElo "1131"]
[BlackElo "1393"]
[TimeControl "180+1"]
[EndTime "11:10:26 PDT"]
[Termination "Uživatel dino5517 zvítězil na čas"]

1. d4 {[%clk 0:02:59.4]} 1... e5 {[%clk 0:02:53.6]} 2. d5 {[%clk 0:02:58.6]}
2... c6 {[%clk 0:02:52.1]} 3. dxc6 {[%clk 0:02:55.2]} 3... Nxc6 {[%clk
0:02:52.1]} 4. Nc3 {[%clk 0:02:49.6]} 4... Bc5 {[%clk 0:02:50.4]} 5. Nf3 {[%clk
0:02:44.5]} 5... Qf6 {[%clk 0:02:43]} 6. e4 {[%clk 0:02:40.2]} 6... Nd4 {[%clk
0:02:34.2]} 7. Nxd4 {[%clk 0:02:23.8]} 7... Bxd4 {[%clk 0:02:30.5]} 8. Be3
{[%clk 0:02:21.4]} 8... Bxe3 {[%clk 0:02:28.1]} 9. fxe3 {[%clk 0:02:15.9]} 9...
Nh6 {[%clk 0:02:19.9]} 10. Nd5 {[%clk 0:02:04.2]} 10... Qd6 {[%clk 0:02:04.5]}
11. Bd3 {[%clk 0:01:46.7]} 11... O-O {[%clk 0:02:02.3]} 12. O-O {[%clk
0:01:37.5]} 12... Re8 {[%clk 0:01:58.9]} 13. Bc4 {[%clk 0:01:27.4]} 13... Qg6
{[%clk 0:01:54.9]} 14. Nc7 {[%clk 0:01:23.3]} 14... d5 {[%clk 0:01:49.2]} 15.
Bxd5 {[%clk 0:01:15.8]} 15... Bh3 {[%clk 0:01:47.1]} 16. Qf3 {[%clk 0:00:59.2]}
16... Be6 {[%clk 0:01:38.8]} 17. Bxe6 {[%clk 0:00:53.3]} 17... fxe6 {[%clk
0:01:38.8]} 18. Nxe8 {[%clk 0:00:51.3]} 18... Rxe8 {[%clk 0:01:37.3]} 19. Rad1
{[%clk 0:00:44.4]} 19... Qg5 {[%clk 0:01:27]} 20. h3 {[%clk 0:00:40.6]} 20... b6
{[%clk 0:01:17.9]} 21. Rf2 {[%clk 0:00:10.6]} 21... g6 {[%clk 0:01:01.1]} 22.
Rdf1 {[%clk 0:00:08.9]} 22... a5 {[%clk 0:00:58.7]} 23. Qe2 {[%clk 0:00:04.9]}
23... a4 {[%clk 0:00:55.6]} 24. Qc4 {[%clk 0:00:02.8]} 24... b5 {[%clk
0:00:53.1]} 25. Qxb5 {[%clk 0:00:02.1]} 25... Rd8 {[%clk 0:00:48.5]} 26. Qb6
{[%clk 0:00:01.4]} 26... Re8 {[%clk 0:00:43.6]} 0-1

[Event "Betsys MČR v online bleskovém šachu 2021"]
[Site "Chess.com"]
[Date "2021.04.17"]
[Round "13"]
[White "kalcs"]
[Black "SajdlJosef"]
[Result "1/2-1/2"]
[WhiteElo "2057"]
[BlackElo "1827"]
[TimeControl "180+1"]
[EndTime "11:10:28 PDT"]
[Termination "Remíza dohodou"]

1. e4 {[%clk 0:03:00.1]} 1... c6 {[%clk 0:02:58.8]} 2. d4 {[%clk 0:02:59.1]}
2... d5 {[%clk 0:02:58.5]} 3. e5 {[%clk 0:02:59.3]} 3... g6 {[%clk 0:02:57.9]}
4. Nf3 {[%clk 0:02:59.2]} 4... h5 {[%clk 0:02:57.5]} 5. Bd3 {[%clk 0:02:57]}
5... Nh6 {[%clk 0:02:56.9]} 6. O-O {[%clk 0:02:55.8]} 6... Bf5 {[%clk
0:02:56.2]} 7. b3 {[%clk 0:02:35]} 7... e6 {[%clk 0:02:52]} 8. h3 {[%clk
0:02:33.3]} 8... Nd7 {[%clk 0:02:44.4]} 9. Bg5 {[%clk 0:02:32.5]} 9... Be7
{[%clk 0:02:16]} 10. Bxh6 {[%clk 0:02:27.1]} 10... Rxh6 {[%clk 0:02:14.8]} 11.
c4 {[%clk 0:02:18.1]} 11... Bxd3 {[%clk 0:02:00.4]} 12. Qxd3 {[%clk 0:02:17.2]}
12... Rh8 {[%clk 0:01:56.1]} 13. c5 {[%clk 0:02:07.4]} 13... b6 {[%clk
0:01:53.3]} 14. b4 {[%clk 0:02:05.1]} 14... a5 {[%clk 0:01:52.1]} 15. a4 {[%clk
0:01:43.5]} 15... axb4 {[%clk 0:01:47.6]} 16. cxb6 {[%clk 0:01:41.9]} 16... Qxb6
{[%clk 0:01:43.3]} 17. Nbd2 {[%clk 0:01:37.5]} 17... Kf8 {[%clk 0:01:36.7]} 18.
Nb3 {[%clk 0:01:36]} 18... Kg7 {[%clk 0:01:28]} 19. Rfc1 {[%clk 0:01:34.8]}
19... c5 {[%clk 0:01:17.7]} 20. dxc5 {[%clk 0:01:26.2]} 20... Nxc5 {[%clk
0:01:16.4]} 21. Qe3 {[%clk 0:00:59.3]} 21... Nxa4 {[%clk 0:00:58.2]} 22. Qf4
{[%clk 0:00:59.1]} 22... Nc5 {[%clk 0:00:46.7]} 23. Nbd4 {[%clk 0:00:57.5]}
23... Rxa1 {[%clk 0:00:41.3]} 24. Rxa1 {[%clk 0:00:56.7]} 24... b3 {[%clk
0:00:35.1]} 25. Rb1 {[%clk 0:00:54]} 25... b2 {[%clk 0:00:30.1]} 26. Ng5 {[%clk
0:00:53.6]} 26... Rf8 {[%clk 0:00:24.9]} 27. Qd2 {[%clk 0:00:45.1]} 27... Ne4
{[%clk 0:00:21]} 28. Nxe4 {[%clk 0:00:44]} 28... dxe4 {[%clk 0:00:18.8]} 29.
Rxb2 {[%clk 0:00:43.9]} 29... Qc5 {[%clk 0:00:13.8]} 30. Rb5 {[%clk 0:00:37.6]}
30... Qc4 {[%clk 0:00:11.4]} 1/2-1/2

[Event "Betsys MČR v online bleskovém šachu 2021"]
[Site "Chess.com"]
[Date "2021.04.17"]
[Round "13"]
[White "misa2009"]
[Black "Petr_Zacek"]
[Result "0-1"]
[WhiteElo "1512"]
[BlackElo "1731"]
[TimeControl "180+1"]
[EndTime "11:10:30 PDT"]
[Termination "Uživatel Petr_Zacek zvítězil matem"]

1. e4 {[%clk 0:03:00.9]} 1... e6 {[%clk 0:02:59.5]} 2. d4 {[%clk 0:03:00.3]}
2... d5 {[%clk 0:02:58.7]} 3. e5 {[%clk 0:02:59.5]} 3... c5 {[%clk 0:02:57]} 4.
c3 {[%clk 0:02:59]} 4... Nc6 {[%clk 0:02:56.6]} 5. f4 {[%clk 0:02:58.9]} 5...
Qb6 {[%clk 0:02:56.1]} 6. Nf3 {[%clk 0:02:56]} 6... cxd4 {[%clk 0:02:56.1]} 7.
cxd4 {[%clk 0:02:55.7]} 7... Nge7 {[%clk 0:02:55.5]} 8. Nc3 {[%clk 0:02:55.5]}
8... Nf5 {[%clk 0:02:54.4]} 9. Na4 {[%clk 0:02:47.6]} 9... Qd8 {[%clk
0:02:53.7]} 10. Nc3 {[%clk 0:02:45.4]} 10... Be7 {[%clk 0:02:50.4]} 11. h3
{[%clk 0:02:43.7]} 11... Ng3 {[%clk 0:02:48.3]} 12. Rg1 {[%clk 0:02:41.4]} 12...
Nxf1 {[%clk 0:02:48.2]} 13. Kxf1 {[%clk 0:02:39.9]} 13... b6 {[%clk 0:02:47.9]}
14. Kf2 {[%clk 0:02:38.9]} 14... O-O {[%clk 0:02:44.7]} 15. Rf1 {[%clk
0:02:38.7]} 15... f6 {[%clk 0:02:39.6]} 16. Kg1 {[%clk 0:02:37.1]} 16... Ba6
{[%clk 0:02:34.5]} 17. Rf2 {[%clk 0:02:33.7]} 17... fxe5 {[%clk 0:02:34.1]} 18.
fxe5 {[%clk 0:02:33]} 18... Rc8 {[%clk 0:02:28]} 19. Be3 {[%clk 0:02:27.7]}
19... Qe8 {[%clk 0:02:13.9]} 20. a3 {[%clk 0:02:26]} 20... Qh5 {[%clk
0:02:10.8]} 21. b4 {[%clk 0:02:19.4]} 21... Bb7 {[%clk 0:02:01.5]} 22. Ne2
{[%clk 0:02:16.5]} 22... a6 {[%clk 0:01:49.1]} 23. Nf4 {[%clk 0:02:15.7]} 23...
Qf7 {[%clk 0:01:41.8]} 24. Rc1 {[%clk 0:02:07]} 24... h6 {[%clk 0:01:39.1]} 25.
Kh1 {[%clk 0:01:55.3]} 25... Na7 {[%clk 0:01:25.3]} 26. Rfc2 {[%clk 0:01:51.2]}
26... Nb5 {[%clk 0:01:22.4]} 27. a4 {[%clk 0:01:47.1]} 27... Na3 {[%clk
0:01:20.7]} 28. Rxc8 {[%clk 0:01:46.3]} 28... Rxc8 {[%clk 0:01:19.9]} 29. Rxc8+
{[%clk 0:01:45.2]} 29... Bxc8 {[%clk 0:01:18.9]} 30. Qc1 {[%clk 0:01:44.3]}
30... Nc4 {[%clk 0:01:18.8]} 31. Nd2 {[%clk 0:01:39]} 31... b5 {[%clk
0:01:18.2]} 32. axb5 {[%clk 0:01:37.7]} 32... axb5 {[%clk 0:01:17.7]} 33. Nxc4
{[%clk 0:01:37.2]} 33... dxc4 {[%clk 0:01:12.2]} 34. Qc3 {[%clk 0:01:30.8]}
34... Bg5 {[%clk 0:01:10.4]} 35. g3 {[%clk 0:01:28.4]} 35... Bb7+ {[%clk
0:01:08.9]} 36. Kg1 {[%clk 0:01:25.7]} 36... Qf5 {[%clk 0:01:08.4]} 37. Qa3
{[%clk 0:01:12.5]} 37... Qe4 {[%clk 0:01:05.7]} 38. Qa7 {[%clk 0:01:02.3]} 38...
Bxf4 {[%clk 0:00:59.5]} 39. Qb8+ {[%clk 0:00:56.7]} 39... Kh7 {[%clk 0:00:58.2]}
40. Kf1 {[%clk 0:00:49]} 40... Bxe3 {[%clk 0:00:55.6]} 41. Qd6 {[%clk
0:00:38.6]} 41... Qd3+ {[%clk 0:00:52.4]} 42. Ke1 {[%clk 0:00:33.8]} 42... Qd2+
{[%clk 0:00:52.2]} 43. Kf1 {[%clk 0:00:29.6]} 43... Qf2# {[%clk 0:00:51.7]} 0-1

[Event "Betsys MČR v online bleskovém šachu 2021"]
[Site "Chess.com"]
[Date "2021.04.17"]
[Round "13"]
[White "Evca64"]
[Black "KajaOl"]
[Result "1-0"]
[WhiteElo "2095"]
[BlackElo "2227"]
[TimeControl "180+1"]
[EndTime "11:10:31 PDT"]
[Termination "Uživatel Evca64 zvítězil na čas"]

1. e4 {[%clk 0:03:00.9]} 1... Nf6 {[%clk 0:02:59.3]} 2. e5 {[%clk 0:03:00.5]}
2... Nd5 {[%clk 0:02:59.4]} 3. d4 {[%clk 0:03:00.6]} 3... d6 {[%clk 0:02:59.5]}
4. c4 {[%clk 0:03:00.6]} 4... Nb6 {[%clk 0:02:59.5]} 5. exd6 {[%clk 0:03:00.8]}
5... cxd6 {[%clk 0:03:00.4]} 6. Nc3 {[%clk 0:02:58.9]} 6... g6 {[%clk
0:03:00.6]} 7. Be3 {[%clk 0:02:58.5]} 7... Bg7 {[%clk 0:03:00.9]} 8. Rc1 {[%clk
0:02:57.8]} 8... O-O {[%clk 0:03:00.7]} 9. b3 {[%clk 0:02:57.8]} 9... Bf5 {[%clk
0:02:57.6]} 10. g4 {[%clk 0:02:57.5]} 10... Bc8 {[%clk 0:02:51]} 11. Bg2 {[%clk
0:02:54.8]} 11... Nc6 {[%clk 0:02:48.2]} 12. h3 {[%clk 0:02:51.4]} 12... a5
{[%clk 0:02:25.7]} 13. Nge2 {[%clk 0:02:31.8]} 13... Bd7 {[%clk 0:02:05]} 14.
O-O {[%clk 0:02:30.5]} 14... a4 {[%clk 0:01:54.9]} 15. d5 {[%clk 0:02:25.7]}
15... Nb4 {[%clk 0:01:21.2]} 16. Bd4 {[%clk 0:02:24.5]} 16... axb3 {[%clk
0:01:14.8]} 17. axb3 {[%clk 0:02:23.7]} 17... Na2 {[%clk 0:00:58.8]} 18. Nxa2
{[%clk 0:02:20.5]} 18... Rxa2 {[%clk 0:00:59.7]} 19. Nc3 {[%clk 0:02:11.5]}
19... Ra3 {[%clk 0:00:53.4]} 20. Bxg7 {[%clk 0:02:10.6]} 20... Kxg7 {[%clk
0:00:53.1]} 21. Ne2 {[%clk 0:02:03.2]} 21... Kg8 {[%clk 0:00:50.6]} 22. Nd4
{[%clk 0:02:02.2]} 22... Qa8 {[%clk 0:00:48.7]} 23. Qd3 {[%clk 0:01:52]} 23...
Rc8 {[%clk 0:00:45.3]} 24. Qe4 {[%clk 0:01:46.9]} 24... Re8 {[%clk 0:00:39.6]}
25. f4 {[%clk 0:01:41]} 25... Qa7 {[%clk 0:00:38.3]} 26. Kh1 {[%clk 0:01:39.6]}
26... Na8 {[%clk 0:00:35.7]} 27. f5 {[%clk 0:01:35.8]} 27... Nc7 {[%clk
0:00:29.3]} 28. fxg6 {[%clk 0:01:32.5]} 28... hxg6 {[%clk 0:00:27.5]} 29. Rc3
{[%clk 0:01:18.9]} 29... b5 {[%clk 0:00:17.9]} 30. Rcf3 {[%clk 0:01:13]} 30...
Rf8 {[%clk 0:00:10.3]} 31. cxb5 {[%clk 0:01:03]} 31... Nxb5 {[%clk 0:00:05.7]}
32. Nc6 {[%clk 0:00:55.4]} 32... Bxc6 {[%clk 0:00:04.4]} 33. dxc6 {[%clk
0:00:55.1]} 33... Qc7 {[%clk 0:00:03.6]} 34. Qd5 {[%clk 0:00:54.6]} 1-0

[Event "Betsys MČR v online bleskovém šachu 2021"]
[Site "Chess.com"]
[Date "2021.04.17"]
[Round "13"]
[White "Cimrman"]
[Black "Chessillusion213"]
[Result "1-0"]
[WhiteElo "2325"]
[BlackElo "2147"]
[TimeControl "180+1"]
[EndTime "11:10:33 PDT"]
[Termination "Uživatel Cimrman zvítězil po vzdání soupeře"]

1. d4 {[%clk 0:02:03.8]} 1... Nf6 {[%clk 0:02:59.2]} 2. Nf3 {[%clk 0:02:03.7]}
2... g6 {[%clk 0:02:59.3]} 3. c4 {[%clk 0:02:03.4]} 3... Bg7 {[%clk 0:02:59.7]}
4. Nc3 {[%clk 0:02:03.7]} 4... O-O {[%clk 0:03:00.1]} 5. e4 {[%clk 0:02:03.9]}
5... d6 {[%clk 0:03:00.6]} 6. Be2 {[%clk 0:02:04.3]} 6... e5 {[%clk 0:03:00.9]}
7. dxe5 {[%clk 0:02:04.1]} 7... dxe5 {[%clk 0:03:00.2]} 8. Qxd8 {[%clk
0:02:04.7]} 8... Rxd8 {[%clk 0:03:00.4]} 9. Bg5 {[%clk 0:02:05.2]} 9... Rf8
{[%clk 0:02:59.3]} 10. Nxe5 {[%clk 0:02:02.2]} 10... Nxe4 {[%clk 0:02:52.8]} 11.
Nxe4 {[%clk 0:01:59.1]} 11... Bxe5 {[%clk 0:02:52.4]} 12. Bf6 {[%clk 0:01:58.2]}
12... Bxf6 {[%clk 0:02:45.3]} 13. Nxf6+ {[%clk 0:01:59.1]} 13... Kg7 {[%clk
0:02:45.1]} 14. Nd5 {[%clk 0:02:00]} 14... Na6 {[%clk 0:02:39.4]} 15. O-O-O
{[%clk 0:01:56.1]} 15... c6 {[%clk 0:02:37.5]} 16. Nc3 {[%clk 0:01:54.2]} 16...
Be6 {[%clk 0:02:35.4]} 17. a3 {[%clk 0:01:44]} 17... Nc5 {[%clk 0:02:26.1]} 18.
b4 {[%clk 0:01:39.3]} 18... Nd7 {[%clk 0:02:22.8]} 19. f4 {[%clk 0:01:29.1]}
19... Nf6 {[%clk 0:02:19.1]} 20. Kb2 {[%clk 0:01:08.6]} 20... Rad8 {[%clk
0:02:17.4]} 21. h3 {[%clk 0:01:04.6]} 21... h5 {[%clk 0:02:15.1]} 22. Kc1 {[%clk
0:00:44.1]} 22... Rfe8 {[%clk 0:02:01.8]} 23. Rxd8 {[%clk 0:00:42.7]} 23... Rxd8
{[%clk 0:02:01.4]} 24. Rd1 {[%clk 0:00:43.6]} 24... Rxd1+ {[%clk 0:01:55.5]} 25.
Kxd1 {[%clk 0:00:44.5]} 25... Kf8 {[%clk 0:01:52.8]} 26. Kd2 {[%clk 0:00:44.6]}
26... Ke7 {[%clk 0:01:52.7]} 27. Ke3 {[%clk 0:00:44.9]} 27... b6 {[%clk
0:01:49.3]} 28. Kd4 {[%clk 0:00:44.3]} 28... Kd6 {[%clk 0:01:47.8]} 29. c5+
{[%clk 0:00:44.6]} 29... bxc5+ {[%clk 0:01:37.7]} 30. bxc5+ {[%clk 0:00:45.5]}
30... Ke7 {[%clk 0:01:36.2]} 31. Bf3 {[%clk 0:00:45.6]} 31... Kd7 {[%clk
0:01:31.3]} 32. Ke5 {[%clk 0:00:45.8]} 32... Ne8 {[%clk 0:01:30.4]} 33. Ne4
{[%clk 0:00:40.7]} 33... Kc7 {[%clk 0:01:15]} 34. Nf6 {[%clk 0:00:30]} 34...
Nxf6 {[%clk 0:01:14]} 35. Kxf6 {[%clk 0:00:28.2]} 35... Kd7 {[%clk 0:01:14.2]}
36. g4 {[%clk 0:00:26.6]} 36... hxg4 {[%clk 0:01:14.1]} 37. hxg4 {[%clk
0:00:27.5]} 37... Kc7 {[%clk 0:01:12.1]} 38. f5 {[%clk 0:00:25.8]} 38... gxf5
{[%clk 0:01:11.3]} 39. gxf5 {[%clk 0:00:26.7]} 39... Bc4 {[%clk 0:01:11.1]} 40.
Bh5 {[%clk 0:00:26.7]} 40... Kd7 {[%clk 0:01:07.1]} 41. Bxf7 {[%clk 0:00:26.4]}
41... Bd3 {[%clk 0:01:07.5]} 42. Be6+ {[%clk 0:00:25.9]} 42... Ke8 {[%clk
0:01:05.7]} 43. Kg7 {[%clk 0:00:22.9]} 43... Ke7 {[%clk 0:01:05.3]} 44. f6+
{[%clk 0:00:22.3]} 44... Kxe6 {[%clk 0:01:01]} 45. f7 {[%clk 0:00:22.6]} 1-0